[Event "*** Titled Tuesday Blitz"]
[Site "Chess.com"]
[Date "2021.03.09"]
[Round "7"]
[White "SanchezKelvin"]
[Black "MustafayevFarid2004"]
[Result "1/2-1/2"]
[WhiteElo "2586"]
[BlackElo "2444"]
[TimeControl "180+1"]
[EndTime "11:22:46 PST"]
[Termination "Game drawn by repetition"]

1. d4 {[%clk 0:03:00.9]} 1... Nf6 {[%clk 0:02:58.5]} 2. Nf3 {[%clk 0:03:00]}
2... d5 {[%clk 0:02:58.2]} 3. c4 {[%clk 0:02:59.7]} 3... e6 {[%clk 0:02:58]} 4.
Nc3 {[%clk 0:02:59.8]} 4... Bb4 {[%clk 0:02:53.7]} 5. Bg5 {[%clk 0:02:58.2]}
5... h6 {[%clk 0:02:50.7]} 6. Bxf6 {[%clk 0:02:58.1]} 6... Qxf6 {[%clk
0:02:51.6]} 7. e3 {[%clk 0:02:56.9]} 7... O-O {[%clk 0:02:48.6]} 8. Rc1 {[%clk
0:02:55]} 8... Nd7 {[%clk 0:02:43.1]} 9. a3 {[%clk 0:02:47.5]} 9... Bxc3+ {[%clk
0:02:40.9]} 10. Rxc3 {[%clk 0:02:48.4]} 10... dxc4 {[%clk 0:02:41.2]} 11. Rxc4
{[%clk 0:02:48]} 11... c6 {[%clk 0:02:40.6]} 12. Be2 {[%clk 0:02:41.7]} 12... e5
{[%clk 0:02:30.7]} 13. O-O {[%clk 0:02:38.8]} 13... Re8 {[%clk 0:02:27.6]} 14.
dxe5 {[%clk 0:02:35.6]} 14... Nxe5 {[%clk 0:02:28.5]} 15. Nxe5 {[%clk
0:02:29.2]} 15... Qxe5 {[%clk 0:02:29.4]} 16. Qd4 {[%clk 0:02:25.1]} 16... Qe7
{[%clk 0:02:23]} 17. Rd1 {[%clk 0:02:21.2]} 17... Be6 {[%clk 0:02:07.2]} 18.
Rcc1 {[%clk 0:02:20.5]} 18... Rad8 {[%clk 0:01:50.4]} 19. Qxa7 {[%clk
0:02:14.2]} 19... Bd5 {[%clk 0:01:47.6]} 20. Bf1 {[%clk 0:01:46.7]} 20... Qf6
{[%clk 0:01:21.6]} 21. Qd4 {[%clk 0:01:41.9]} 21... Qg5 {[%clk 0:01:20.6]} 22.
Qc3 {[%clk 0:01:32.2]} 22... Re6 {[%clk 0:01:16.2]} 23. Rd2 {[%clk 0:01:15.3]}
23... Rg6 {[%clk 0:01:04.6]} 24. f4 {[%clk 0:01:14.4]} 24... Qe7 {[%clk
0:01:01.5]} 25. Rcd1 {[%clk 0:01:09.3]} 25... Re8 {[%clk 0:01:00.2]} 26. Re1
{[%clk 0:01:01.4]} 26... Re6 {[%clk 0:00:57.6]} 27. Rde2 {[%clk 0:00:59.6]}
27... Re4 {[%clk 0:00:54.3]} 28. Rd2 {[%clk 0:00:47.2]} 28... Rxe3 {[%clk
0:00:41.6]} 29. Rxe3 {[%clk 0:00:46.5]} 29... Qxe3+ {[%clk 0:00:42.5]} 30. Qxe3
{[%clk 0:00:46.7]} 30... Rxe3 {[%clk 0:00:43.4]} 31. Kf2 {[%clk 0:00:47]} 31...
Re4 {[%clk 0:00:42.9]} 32. g3 {[%clk 0:00:46.5]} 32... Re7 {[%clk 0:00:40.3]}
33. Re2 {[%clk 0:00:38.6]} 33... Rd7 {[%clk 0:00:36.5]} 34. Rd2 {[%clk
0:00:34.7]} 34... Rc7 {[%clk 0:00:36]} 35. Be2 {[%clk 0:00:33.8]} 35... Re7
{[%clk 0:00:19.4]} 36. b4 {[%clk 0:00:30]} 36... g6 {[%clk 0:00:17.9]} 37. a4
{[%clk 0:00:27.8]} 37... Kg7 {[%clk 0:00:17.5]} 38. a5 {[%clk 0:00:27.6]} 38...
Re4 {[%clk 0:00:17.5]} 39. b5 {[%clk 0:00:24.3]} 39... Ra4 {[%clk 0:00:17.4]}
40. a6 {[%clk 0:00:20]} 40... bxa6 {[%clk 0:00:13.6]} 41. bxa6 {[%clk
0:00:20.2]} 41... Be4 {[%clk 0:00:11.8]} 42. Rb2 {[%clk 0:00:19.5]} 42... c5
{[%clk 0:00:11.7]} 43. Bb5 {[%clk 0:00:17.9]} 43... Ra5 {[%clk 0:00:11.5]} 44.
Ke3 {[%clk 0:00:15.1]} 44... Bd5 {[%clk 0:00:11.6]} 45. Be2 {[%clk 0:00:12.6]}
45... Ra3+ {[%clk 0:00:07.9]} 46. Kf2 {[%clk 0:00:12.8]} 46... c4 {[%clk
0:00:07.4]} 47. Rb5 {[%clk 0:00:12.8]} 47... Be6 {[%clk 0:00:05.7]} 48. Rb6
{[%clk 0:00:12.9]} 48... c3 {[%clk 0:00:04.8]} 49. Rc6 {[%clk 0:00:13.2]} 49...
Bd5 {[%clk 0:00:04.1]} 50. Rd6 {[%clk 0:00:12.6]} 50... Be4 {[%clk 0:00:03.8]}
51. Ke3 {[%clk 0:00:09.4]} 51... Bf5 {[%clk 0:00:04.3]} 52. Rc6 {[%clk
0:00:08.8]} 52... c2+ {[%clk 0:00:04.4]} 53. Kd2 {[%clk 0:00:09.1]} 53... Ra2
{[%clk 0:00:04.8]} 54. Kc1 {[%clk 0:00:08.2]} 54... Ra1+ {[%clk 0:00:05]} 55.
Kd2 {[%clk 0:00:08.7]} 55... Ra2 {[%clk 0:00:05.2]} 56. Kc1 {[%clk 0:00:09.1]}
56... Ra1+ {[%clk 0:00:05.7]} 57. Kd2 {[%clk 0:00:09.6]} 57... h5 {[%clk
0:00:05.4]} 58. h3 {[%clk 0:00:09]} 58... Ra2 {[%clk 0:00:03.8]} 59. Kc1 {[%clk
0:00:08.6]} 59... Ra1+ {[%clk 0:00:04.3]} 60. Kd2 {[%clk 0:00:09.1]} 60... Ra2
{[%clk 0:00:04.9]} 61. Kc1 {[%clk 0:00:09.4]} 61... Ra1+ {[%clk 0:00:05.5]} 62.
Kd2 {[%clk 0:00:09.7]} 1/2-1/2

[Event "*** Titled Tuesday Blitz"]
[Site "Chess.com"]
[Date "2021.03.09"]
[Round "7"]
[White "Guzman70"]
[Black "kleopl"]
[Result "1/2-1/2"]
[WhiteElo "2347"]
[BlackElo "2469"]
[TimeControl "180+1"]
[EndTime "11:22:48 PST"]
[Termination "Game drawn by repetition"]

1. e4 {[%clk 0:03:00.9]} 1... d5 {[%clk 0:02:59.1]} 2. exd5 {[%clk 0:03:00.3]}
2... Qxd5 {[%clk 0:03:00]} 3. Nc3 {[%clk 0:03:00.2]} 3... Qd6 {[%clk 0:03:00.3]}
4. Nf3 {[%clk 0:02:54.2]} 4... Nf6 {[%clk 0:03:00.3]} 5. g3 {[%clk 0:02:52.4]}
5... Nc6 {[%clk 0:02:54.5]} 6. Bg2 {[%clk 0:02:52.3]} 6... Bg4 {[%clk
0:02:54.7]} 7. O-O {[%clk 0:02:47.7]} 7... e5 {[%clk 0:02:51.1]} 8. h3 {[%clk
0:02:42.3]} 8... Bh5 {[%clk 0:02:49.3]} 9. d3 {[%clk 0:02:34.6]} 9... O-O-O
{[%clk 0:02:44.2]} 10. Qe1 {[%clk 0:02:26.1]} 10... Bxf3 {[%clk 0:02:41.4]} 11.
Bxf3 {[%clk 0:02:25.7]} 11... Nd4 {[%clk 0:02:41.7]} 12. Bd1 {[%clk 0:02:25.1]}
12... h5 {[%clk 0:02:39.6]} 13. h4 {[%clk 0:02:20.4]} 13... Ng4 {[%clk
0:02:35.8]} 14. Ne4 {[%clk 0:02:17.8]} 14... Qc6 {[%clk 0:02:31.8]} 15. c3
{[%clk 0:02:11]} 15... Ne6 {[%clk 0:02:29.7]} 16. Qd2 {[%clk 0:01:44.9]} 16...
Be7 {[%clk 0:02:23.9]} 17. Bf3 {[%clk 0:01:43.9]} 17... Qa6 {[%clk 0:02:17.1]}
18. Rd1 {[%clk 0:01:37.6]} 18... f5 {[%clk 0:02:16.4]} 19. Ng5 {[%clk
0:01:35.9]} 19... Nxg5 {[%clk 0:02:13.4]} 20. hxg5 {[%clk 0:01:35.7]} 20... Bc5
{[%clk 0:02:11.6]} 21. d4 {[%clk 0:01:26.7]} 21... exd4 {[%clk 0:02:11.1]} 22.
Qf4 {[%clk 0:01:26.9]} 22... g6 {[%clk 0:01:55.3]} 23. cxd4 {[%clk 0:01:23.1]}
23... Bd6 {[%clk 0:01:55.2]} 24. Qd2 {[%clk 0:01:19.1]} 24... h4 {[%clk
0:01:54.2]} 25. Qe2 {[%clk 0:01:03.1]} 25... hxg3 {[%clk 0:01:41.3]} 26. fxg3
{[%clk 0:00:47.8]} 26... Qb6 {[%clk 0:01:05.8]} 27. Bf4 {[%clk 0:00:41.1]} 27...
Rde8 {[%clk 0:01:03.2]} 28. Qc4 {[%clk 0:00:33.5]} 28... Bxf4 {[%clk 0:01:00.2]}
29. gxf4 {[%clk 0:00:33.5]} 29... Ne3 {[%clk 0:00:59.5]} 30. Qc5 {[%clk
0:00:30.5]} 30... Nxd1 {[%clk 0:00:57.8]} 31. Rxd1 {[%clk 0:00:29.5]} 31... Qxc5
{[%clk 0:00:56.8]} 32. dxc5 {[%clk 0:00:29.3]} 32... Rd8 {[%clk 0:00:57.1]} 33.
Rc1 {[%clk 0:00:28.4]} 33... c6 {[%clk 0:00:56.1]} 34. Rc3 {[%clk 0:00:27.3]}
34... Rhe8 {[%clk 0:00:55.9]} 35. Kf2 {[%clk 0:00:27.1]} 35... Rd2+ {[%clk
0:00:54.9]} 36. Kg3 {[%clk 0:00:27.6]} 36... Rxb2 {[%clk 0:00:54.5]} 37. Rd3
{[%clk 0:00:27.8]} 37... Rxa2 {[%clk 0:00:51.5]} 38. Rd6 {[%clk 0:00:27.6]}
38... Rg8 {[%clk 0:00:51.7]} 39. Rf6 {[%clk 0:00:25.5]} 39... Rc2 {[%clk
0:00:48.9]} 40. Bd1 {[%clk 0:00:19.8]} 40... Rxc5 {[%clk 0:00:47]} 41. Kf2
{[%clk 0:00:19.9]} 41... Rg7 {[%clk 0:00:43.9]} 42. Bb3 {[%clk 0:00:19.8]} 42...
Rd5 {[%clk 0:00:40.3]} 43. Bxd5 {[%clk 0:00:19.5]} 43... cxd5 {[%clk 0:00:41.2]}
44. Ke3 {[%clk 0:00:20.1]} 44... Kc7 {[%clk 0:00:40.7]} 45. Kd4 {[%clk 0:00:21]}
45... Re7 {[%clk 0:00:38]} 46. Rxg6 {[%clk 0:00:19.9]} 46... Re4+ {[%clk
0:00:38.2]} 47. Kxd5 {[%clk 0:00:20.4]} 47... Rxf4 {[%clk 0:00:39.1]} 48. Ke5
{[%clk 0:00:20.8]} 48... Rf1 {[%clk 0:00:38]} 49. Rf6 {[%clk 0:00:19.3]} 49...
Rg1 {[%clk 0:00:36.6]} 50. Kxf5 {[%clk 0:00:19.1]} 50... a5 {[%clk 0:00:35.2]}
51. g6 {[%clk 0:00:19.6]} 51... b6 {[%clk 0:00:34.9]} 52. Rf7+ {[%clk
0:00:15.1]} 52... Kc6 {[%clk 0:00:35]} 53. g7 {[%clk 0:00:15.6]} 53... b5 {[%clk
0:00:34.6]} 54. Ra7 {[%clk 0:00:15.5]} 54... Kb6 {[%clk 0:00:34.1]} 55. Rf7
{[%clk 0:00:13.5]} 55... Kc5 {[%clk 0:00:34.4]} 56. Ra7 {[%clk 0:00:12.6]} 56...
Kb4 {[%clk 0:00:34.3]} 57. Kf6 {[%clk 0:00:13.1]} 57... a4 {[%clk 0:00:33.9]}
58. Kf7 {[%clk 0:00:13.3]} 58... Ka3 {[%clk 0:00:31.9]} 59. Rb7 {[%clk
0:00:12.8]} 59... b4 {[%clk 0:00:31.6]} 60. Rb6 {[%clk 0:00:13.1]} 60... b3
{[%clk 0:00:31.5]} 61. Rg6 {[%clk 0:00:12.6]} 61... Rf1+ {[%clk 0:00:30.9]} 62.
Ke7 {[%clk 0:00:12.3]} 62... Re1+ {[%clk 0:00:30.5]} 63. Kd7 {[%clk 0:00:12]}
63... Rd1+ {[%clk 0:00:30.8]} 64. Kc7 {[%clk 0:00:12]} 64... Rc1+ {[%clk
0:00:30.7]} 65. Kd7 {[%clk 0:00:12.3]} 65... b2 {[%clk 0:00:29.3]} 66. Rg3+
{[%clk 0:00:10.2]} 66... Kb4 {[%clk 0:00:29.1]} 67. Rg4+ {[%clk 0:00:09.5]}
67... Ka3 {[%clk 0:00:25.6]} 68. Rg3+ {[%clk 0:00:09]} 68... Kb4 {[%clk
0:00:24.3]} 69. Rg4+ {[%clk 0:00:09.1]} 69... Ka3 {[%clk 0:00:22.9]} 70. Rg3+
{[%clk 0:00:09.2]} 1/2-1/2

[Event "*** Titled Tuesday Blitz"]
[Site "Chess.com"]
[Date "2021.03.09"]
[Round "7"]
[White "Kretov_Evgenij"]
[Black "Shubinkirill2003"]
[Result "1-0"]
[WhiteElo "2554"]
[BlackElo "2654"]
[TimeControl "180+1"]
[EndTime "11:22:49 PST"]
[Termination "Kretov_Evgenij won on time"]

1. d4 {[%clk 0:03:00.9]} 1... e6 {[%clk 0:03:00.1]} 2. c4 {[%clk 0:03:00.9]}
2... Nf6 {[%clk 0:03:00]} 3. Nc3 {[%clk 0:03:01.2]} 3... Bb4 {[%clk 0:02:59.4]}
4. Bg5 {[%clk 0:03:00.9]} 4... d6 {[%clk 0:02:56.8]} 5. Qa4+ {[%clk 0:02:59.7]}
5... Nc6 {[%clk 0:02:55.3]} 6. d5 {[%clk 0:02:59.5]} 6... Bd7 {[%clk 0:02:20.6]}
7. dxc6 {[%clk 0:02:55.3]} 7... Bxc3+ {[%clk 0:02:21]} 8. bxc3 {[%clk
0:02:54.7]} 8... Bxc6 {[%clk 0:02:21.9]} 9. Qc2 {[%clk 0:02:53.2]} 9... Qd7
{[%clk 0:02:17.3]} 10. Bxf6 {[%clk 0:02:48.2]} 10... gxf6 {[%clk 0:02:18.2]} 11.
Nf3 {[%clk 0:02:47.9]} 11... O-O-O {[%clk 0:02:16.6]} 12. Nd4 {[%clk 0:02:47.3]}
12... f5 {[%clk 0:02:10.6]} 13. Nxc6 {[%clk 0:02:46.3]} 13... Qxc6 {[%clk
0:02:10.7]} 14. e3 {[%clk 0:02:45.8]} 14... h5 {[%clk 0:02:08.8]} 15. h4 {[%clk
0:02:31]} 15... Rhg8 {[%clk 0:02:01]} 16. Rd1 {[%clk 0:02:23]} 16... Rg4 {[%clk
0:01:53.5]} 17. Rd4 {[%clk 0:02:20.7]} 17... Rdg8 {[%clk 0:01:47.3]} 18. Rxg4
{[%clk 0:02:17.4]} 18... Rxg4 {[%clk 0:01:47.6]} 19. f3 {[%clk 0:02:14.5]} 19...
Rg8 {[%clk 0:01:38.7]} 20. Kf2 {[%clk 0:02:10]} 20... Qc5 {[%clk 0:01:38.3]} 21.
Qd2 {[%clk 0:02:06.5]} 21... Qa5 {[%clk 0:01:32.1]} 22. Be2 {[%clk 0:02:03.1]}
22... Qe5 {[%clk 0:01:31.1]} 23. f4 {[%clk 0:02:02.5]} 23... Qg7 {[%clk
0:01:30.5]} 24. Bf3 {[%clk 0:01:59.2]} 24... e5 {[%clk 0:01:24.1]} 25. Qd5
{[%clk 0:01:56.3]} 25... c6 {[%clk 0:01:24]} 26. Qa5 {[%clk 0:01:40]} 26... Kb8
{[%clk 0:01:01.4]} 27. fxe5 {[%clk 0:01:34.6]} 27... dxe5 {[%clk 0:00:45.4]} 28.
Rd1 {[%clk 0:01:19.6]} 28... b6 {[%clk 0:00:38.9]} 29. Qb4 {[%clk 0:00:55.7]}
29... e4 {[%clk 0:00:21.2]} 30. Qd6+ {[%clk 0:00:53.1]} 30... Kb7 {[%clk
0:00:21.4]} 31. Qd7+ {[%clk 0:00:45.8]} 31... Kb8 {[%clk 0:00:20.6]} 32. Qd6+
{[%clk 0:00:28.8]} 32... Kb7 {[%clk 0:00:20.8]} 33. Qe7+ {[%clk 0:00:29.1]}
33... Kc8 {[%clk 0:00:20.9]} 34. Rd7 {[%clk 0:00:27.1]} 34... Qg3+ {[%clk
0:00:20.1]} 35. Ke2 {[%clk 0:00:18.5]} 35... exf3+ {[%clk 0:00:21]} 36. gxf3
{[%clk 0:00:18.5]} 36... Qg2+ {[%clk 0:00:14.7]} 37. Kd3 {[%clk 0:00:16.8]}
37... Qf1+ {[%clk 0:00:14.3]} 38. Kc2 {[%clk 0:00:17.1]} 38... Rg2+ {[%clk
0:00:11.5]} 39. Rd2 {[%clk 0:00:16.6]} 39... Rxd2+ {[%clk 0:00:11.2]} 40. Kxd2
{[%clk 0:00:17.1]} 40... Qxc4 {[%clk 0:00:10.5]} 41. Qe8+ {[%clk 0:00:16.2]}
41... Kb7 {[%clk 0:00:10.1]} 42. Qe7+ {[%clk 0:00:16.3]} 42... Ka6 {[%clk
0:00:09.7]} 43. Qa3+ {[%clk 0:00:16.4]} 43... Kb5 {[%clk 0:00:09.5]} 44. Qxa7
{[%clk 0:00:16.6]} 44... Qxh4 {[%clk 0:00:07.1]} 45. Qa3 {[%clk 0:00:13.1]}
45... Qf2+ {[%clk 0:00:05.5]} 46. Kd3 {[%clk 0:00:13.1]} 46... Qf1+ {[%clk
0:00:05.3]} 47. Kd2 {[%clk 0:00:13]} 47... Qc4 {[%clk 0:00:04.5]} 48. Qb2+
{[%clk 0:00:11.2]} 48... Ka5 {[%clk 0:00:04.1]} 49. Qa3+ {[%clk 0:00:11.5]}
49... Qa4 {[%clk 0:00:04]} 50. Qb2 {[%clk 0:00:11.4]} 50... h4 {[%clk
0:00:03.7]} 51. Kd3 {[%clk 0:00:10.3]} 51... h3 {[%clk 0:00:03.5]} 52. c4 {[%clk
0:00:10.1]} 52... Qb4 {[%clk 0:00:03.2]} 53. Qh2 {[%clk 0:00:10.1]} 53... Qa3+
{[%clk 0:00:03.1]} 54. Kd4 {[%clk 0:00:10.4]} 54... Qc5+ {[%clk 0:00:03.1]} 55.
Kd3 {[%clk 0:00:10.6]} 55... Qa3+ {[%clk 0:00:03.1]} 56. Kd4 {[%clk 0:00:10.5]}
56... Qc5+ {[%clk 0:00:03.2]} 57. Kd3 {[%clk 0:00:10.9]} 57... f4 {[%clk
0:00:03.6]} 58. exf4 {[%clk 0:00:10.6]} 58... Qf5+ {[%clk 0:00:03.5]} 59. Ke3
{[%clk 0:00:10.4]} 59... Kb4 {[%clk 0:00:03.7]} 60. Qb2+ {[%clk 0:00:10.2]} 1-0

[Event "*** Titled Tuesday Blitz"]
[Site "Chess.com"]
[Date "2021.03.09"]
[Round "7"]
[White "PetrolulSah"]
[Black "MasterKroket"]
[Result "1/2-1/2"]
[WhiteElo "2216"]
[BlackElo "2466"]
[TimeControl "180+1"]
[EndTime "11:22:50 PST"]
[Termination "Game drawn - insufficient material"]

1. d4 {[%clk 0:03:00.9]} 1... Nf6 {[%clk 0:02:59.9]} 2. c4 {[%clk 0:03:00.5]}
2... e6 {[%clk 0:03:00.2]} 3. Nc3 {[%clk 0:02:59.5]} 3... Bb4 {[%clk 0:03:00.2]}
4. f3 {[%clk 0:02:58.5]} 4... d5 {[%clk 0:02:59.6]} 5. e3 {[%clk 0:02:54]} 5...
O-O {[%clk 0:02:58.1]} 6. Bd2 {[%clk 0:02:51.6]} 6... c5 {[%clk 0:02:52.7]} 7.
a3 {[%clk 0:02:50.4]} 7... cxd4 {[%clk 0:02:50.1]} 8. exd4 {[%clk 0:02:43.7]}
8... Be7 {[%clk 0:02:45.7]} 9. Be3 {[%clk 0:02:25.5]} 9... Nc6 {[%clk
0:02:40.8]} 10. Bd3 {[%clk 0:02:21.2]} 10... dxc4 {[%clk 0:02:39.4]} 11. Bxc4
{[%clk 0:02:22.1]} 11... b6 {[%clk 0:02:35.8]} 12. Nge2 {[%clk 0:02:21.2]} 12...
Bb7 {[%clk 0:02:35.6]} 13. O-O {[%clk 0:02:19.2]} 13... Rc8 {[%clk 0:02:30.3]}
14. Bd3 {[%clk 0:02:15.8]} 14... Na5 {[%clk 0:02:26.6]} 15. Ne4 {[%clk
0:02:03.3]} 15... Nc4 {[%clk 0:02:20.6]} 16. Bf2 {[%clk 0:01:50.7]} 16... Nxb2
{[%clk 0:02:19.8]} 17. Nxf6+ {[%clk 0:01:50.1]} 17... Bxf6 {[%clk 0:02:18.1]}
18. Bxh7+ {[%clk 0:01:49.1]} 18... Kh8 {[%clk 0:02:01.9]} 19. Qb3 {[%clk
0:01:38.3]} 19... Nc4 {[%clk 0:02:00.1]} 20. Bd3 {[%clk 0:01:19.9]} 20... Nd2
{[%clk 0:01:59.4]} 21. Qb5 {[%clk 0:01:19]} 21... Qd5 {[%clk 0:01:47.3]} 22.
Rfd1 {[%clk 0:01:12.4]} 22... Nc4 {[%clk 0:01:32]} 23. Qb3 {[%clk 0:00:57.3]}
23... Nd6 {[%clk 0:01:27.2]} 24. Qxd5 {[%clk 0:00:51.4]} 24... Bxd5 {[%clk
0:01:28.1]} 25. Nf4 {[%clk 0:00:46.9]} 25... Bb3 {[%clk 0:01:25.1]} 26. Rdc1
{[%clk 0:00:46.7]} 26... g6 {[%clk 0:01:21.4]} 27. Ba6 {[%clk 0:00:45.7]} 27...
Rxc1+ {[%clk 0:01:16.9]} 28. Rxc1 {[%clk 0:00:46.6]} 28... Bd8 {[%clk
0:01:09.9]} 29. Nd3 {[%clk 0:00:42.4]} 29... Bd5 {[%clk 0:01:00.4]} 30. Bg3
{[%clk 0:00:41.3]} 30... Nf5 {[%clk 0:00:59.6]} 31. Bf2 {[%clk 0:00:33.4]} 31...
Be7 {[%clk 0:00:59.7]} 32. Rc7 {[%clk 0:00:30.5]} 32... Bxa3 {[%clk 0:00:58.2]}
33. Rxa7 {[%clk 0:00:30.2]} 33... Ra8 {[%clk 0:00:53]} 34. Rxa8+ {[%clk
0:00:26.6]} 34... Bxa8 {[%clk 0:00:53.9]} 35. Ne5 {[%clk 0:00:26.6]} 35... Kg7
{[%clk 0:00:51.2]} 36. Nd7 {[%clk 0:00:21.2]} 36... Bb2 {[%clk 0:00:34.9]} 37.
Nxb6 {[%clk 0:00:18.1]} 37... Bc6 {[%clk 0:00:35.5]} 38. Nc4 {[%clk 0:00:11.2]}
38... Bc3 {[%clk 0:00:31.6]} 39. Ne5 {[%clk 0:00:10.5]} 39... Bd5 {[%clk
0:00:29]} 40. Bd3 {[%clk 0:00:09.6]} 40... Nxd4 {[%clk 0:00:28.8]} 41. f4 {[%clk
0:00:08.6]} 41... Nb3 {[%clk 0:00:21.4]} 42. g3 {[%clk 0:00:08.3]} 42... Nd2
{[%clk 0:00:20]} 43. h4 {[%clk 0:00:05.7]} 43... Kf6 {[%clk 0:00:14.3]} 44. Bc2
{[%clk 0:00:05.1]} 44... Bxe5 {[%clk 0:00:13.5]} 45. fxe5+ {[%clk 0:00:05.1]}
45... Kxe5 {[%clk 0:00:13.5]} 46. Be3 {[%clk 0:00:05.4]} 46... Nf3+ {[%clk
0:00:13.4]} 47. Kf2 {[%clk 0:00:03.8]} 47... Nd4 {[%clk 0:00:12.6]} 48. Bb1
{[%clk 0:00:03.7]} 48... Nc6 {[%clk 0:00:10.9]} 49. Bc1 {[%clk 0:00:03.7]} 49...
f5 {[%clk 0:00:10.8]} 50. Bb2+ {[%clk 0:00:04.6]} 50... Kd6 {[%clk 0:00:11.4]}
51. Ke3 {[%clk 0:00:04.3]} 51... e5 {[%clk 0:00:11.4]} 52. g4 {[%clk 0:00:04.4]}
52... Ke6 {[%clk 0:00:11.5]} 53. h5 {[%clk 0:00:03.7]} 53... f4+ {[%clk
0:00:11.7]} 54. Kf2 {[%clk 0:00:03.6]} 54... gxh5 {[%clk 0:00:11.7]} 55. gxh5
{[%clk 0:00:03.6]} 55... Ne7 {[%clk 0:00:10.4]} 56. h6 {[%clk 0:00:03.7]} 56...
e4 {[%clk 0:00:08.7]} 57. h7 {[%clk 0:00:03.7]} 57... Ng6 {[%clk 0:00:08.8]} 58.
h8=Q {[%clk 0:00:03.4]} 58... Nxh8 {[%clk 0:00:09.2]} 59. Bxh8 {[%clk
0:00:03.4]} 59... Kf5 {[%clk 0:00:09.2]} 60. Bb2 {[%clk 0:00:03.9]} 60... Bc4
{[%clk 0:00:08.8]} 61. Bc2 {[%clk 0:00:04.2]} 61... Bd5 {[%clk 0:00:08.3]} 62.
Bc1 {[%clk 0:00:04.3]} 62... Kg4 {[%clk 0:00:08.4]} 63. Bxf4 {[%clk 0:00:04.4]}
63... Kxf4 {[%clk 0:00:08.5]} 64. Bxe4 {[%clk 0:00:05]} 1/2-1/2

[Event "*** Titled Tuesday Blitz"]
[Site "Chess.com"]
[Date "2021.03.09"]
[Round "7"]
[White "Matols"]
[Black "BashirliSaadat"]
[Result "1-0"]
[WhiteElo "2281"]
[BlackElo "2168"]
[TimeControl "180+1"]
[EndTime "11:22:56 PST"]
[Termination "Matols won on time"]

1. d4 {[%clk 0:03:00.9]} 1... d5 {[%clk 0:02:59.9]} 2. c4 {[%clk 0:03:00.5]}
2... e6 {[%clk 0:03:00]} 3. Nf3 {[%clk 0:02:59.3]} 3... c6 {[%clk 0:02:59.3]} 4.
e3 {[%clk 0:02:57.8]} 4... Nf6 {[%clk 0:02:58.6]} 5. b3 {[%clk 0:02:56.4]} 5...
dxc4 {[%clk 0:02:56.7]} 6. bxc4 {[%clk 0:02:55.2]} 6... Bb4+ {[%clk 0:02:56.4]}
7. Bd2 {[%clk 0:02:54.1]} 7... Bxd2+ {[%clk 0:02:55.5]} 8. Nbxd2 {[%clk
0:02:53.5]} 8... O-O {[%clk 0:02:55.8]} 9. Bd3 {[%clk 0:02:52.5]} 9... b6 {[%clk
0:02:55.6]} 10. O-O {[%clk 0:02:51.8]} 10... Bb7 {[%clk 0:02:55.8]} 11. Qc2
{[%clk 0:02:49.4]} 11... h6 {[%clk 0:02:52.3]} 12. e4 {[%clk 0:02:44.4]} 12...
Nbd7 {[%clk 0:02:50.2]} 13. e5 {[%clk 0:02:41.7]} 13... Ne8 {[%clk 0:02:47.2]}
14. Ne4 {[%clk 0:02:37.2]} 14... c5 {[%clk 0:02:40.5]} 15. dxc5 {[%clk 0:02:30]}
15... Nxc5 {[%clk 0:02:40.3]} 16. Nxc5 {[%clk 0:02:26.8]} 16... bxc5 {[%clk
0:02:41.2]} 17. Rfd1 {[%clk 0:02:26.1]} 17... Qc7 {[%clk 0:02:33.1]} 18. Be4
{[%clk 0:02:23.1]} 18... Bxe4 {[%clk 0:02:13.4]} 19. Qxe4 {[%clk 0:02:24]} 19...
Rb8 {[%clk 0:02:09.8]} 20. Rab1 {[%clk 0:02:16.5]} 20... Qc8 {[%clk 0:01:49.2]}
21. Rxb8 {[%clk 0:02:04.8]} 21... Qxb8 {[%clk 0:01:50.1]} 22. Qc6 {[%clk
0:02:02.8]} 22... Nc7 {[%clk 0:01:33.4]} 23. Qxc5 {[%clk 0:01:59.3]} 23... Na6
{[%clk 0:01:29]} 24. Qd6 {[%clk 0:01:56.8]} 24... Qb7 {[%clk 0:01:23.4]} 25. h3
{[%clk 0:01:49.9]} 25... Rc8 {[%clk 0:01:21.8]} 26. Rc1 {[%clk 0:01:21.9]} 26...
Qb2 {[%clk 0:01:14.5]} 27. Qd2 {[%clk 0:01:19.7]} 27... Qb6 {[%clk 0:01:10.2]}
28. Qd4 {[%clk 0:01:15.9]} 28... Qc7 {[%clk 0:01:04.1]} 29. Qc3 {[%clk
0:00:52.6]} 29... Nc5 {[%clk 0:01:01.2]} 30. Rd1 {[%clk 0:00:46.6]} 30... Ne4
{[%clk 0:00:53.3]} 31. Qc2 {[%clk 0:00:34.3]} 31... Nc5 {[%clk 0:00:42.1]} 32.
Rd6 {[%clk 0:00:31.2]} 32... Nb7 {[%clk 0:00:39.7]} 33. Rd4 {[%clk 0:00:29.8]}
33... Nc5 {[%clk 0:00:38.3]} 34. Qe2 {[%clk 0:00:28.3]} 34... Na4 {[%clk
0:00:31.6]} 35. Nd2 {[%clk 0:00:26.8]} 35... Qc5 {[%clk 0:00:28.4]} 36. Nb3
{[%clk 0:00:24.8]} 36... Qc7 {[%clk 0:00:26.6]} 37. Rd6 {[%clk 0:00:19.8]} 37...
Qxc4 {[%clk 0:00:21.4]} 38. Rd8+ {[%clk 0:00:18.5]} 38... Kh7 {[%clk 0:00:19.9]}
39. Qxc4 {[%clk 0:00:16.8]} 39... Rxc4 {[%clk 0:00:20.8]} 40. Rd7 {[%clk
0:00:16.6]} 40... Rc2 {[%clk 0:00:17.8]} 41. Rxa7 {[%clk 0:00:14.5]} 41... Nc3
{[%clk 0:00:15.2]} 42. a4 {[%clk 0:00:12.4]} 42... Ra2 {[%clk 0:00:14]} 43. a5
{[%clk 0:00:12]} 43... Nb5 {[%clk 0:00:13.5]} 44. Ra8 {[%clk 0:00:11.6]} 44...
Ra3 {[%clk 0:00:13.1]} 45. Nc5 {[%clk 0:00:11.4]} 45... Nd4 {[%clk 0:00:11.3]}
46. Nd7 {[%clk 0:00:11]} 46... Nc6 {[%clk 0:00:08.2]} 47. Nf8+ {[%clk
0:00:10.8]} 47... Kg8 {[%clk 0:00:07.3]} 48. Nxe6+ {[%clk 0:00:10.6]} 48... Kh7
{[%clk 0:00:06.8]} 49. Nf8+ {[%clk 0:00:10.7]} 49... Kg8 {[%clk 0:00:06.9]} 50.
Nd7+ {[%clk 0:00:10.6]} 50... Kh7 {[%clk 0:00:07]} 51. a6 {[%clk 0:00:10.6]}
51... Ra1+ {[%clk 0:00:04.9]} 52. Kh2 {[%clk 0:00:09.8]} 52... Kg6 {[%clk
0:00:03.2]} 53. Nb8 {[%clk 0:00:09]} 53... Nb4 {[%clk 0:00:02.5]} 54. a7 {[%clk
0:00:08.8]} 54... Nd5 {[%clk 0:00:01.8]} 55. Nc6 {[%clk 0:00:07.7]} 55... Nb6
{[%clk 0:00:02.1]} 56. Rb8 {[%clk 0:00:07.4]} 56... Nd7 {[%clk 0:00:02.1]} 57.
Rb7 {[%clk 0:00:07.3]} 57... Nc5 {[%clk 0:00:02.1]} 58. Rb8 {[%clk 0:00:07.3]}
58... Nd7 {[%clk 0:00:02]} 59. a8=Q {[%clk 0:00:07.3]} 1-0